fUST/lending_fUST_20250203
["ID","MTS","AMOUNT","RATE_DAILY","PERIOD"]
[351316996,1738512031862,160.0,0.00018527,120]
[351316997,1738512180940,260.7418302,0.00015349,2]
[351316999,1738512211923,160.0,0.00019322,120]
[351317001,1738512332632,160.0,0.00018784,120]
[351317002,1738512344587,16092.33140754,0.00015276,2]
[351317003,1738512344626,8807.66859246,0.00015276,2]
[351317004,1738512377173,211.18509241,0.00015286,5]
[351317006,1738512424197,250.0,0.00015323,2]
[351317008,1738512558151,-1511.56192152,0.0001559,2]
[351317012,1738512573127,-97.45474365,0.0001559,2]
[351317013,1738512573150,-343.26234773,0.00015748,2]
[351317014,1738512573173,-300.0,0.00015999,2]
[351317015,1738512573195,-1533.45718666,0.00016,2]
[351317019,1738512631869,160.0,0.0001882,120]
[351317055,1738512632740,-9020.89126604,0.00016,2]
[351317056,1738512632750,-300.0,0.00016399,2]
[351317057,1738512632759,-3000.0,0.000164,2]
[351317058,1738512632769,-3000.0,0.0001641,2]
[351317059,1738512632779,-251.66539831,0.0001641,2]
[351317060,1738512632788,-3000.0,0.0001642,2]
[351317061,1738512632798,-151.0,0.00016428,2]
[351317062,1738512632807,-3000.0,0.0001643,2]
[351317063,1738512632817,-366.62675493,0.00016438,2]
[351317064,1738512632827,-500.0,0.00016438,2]
[351317065,1738512632837,-500.0,0.00016438,2]
[351317066,1738512632847,-500.0,0.00016438,2]
[351317067,1738512632857,-500.0,0.00016438,2]
[351317068,1738512632871,-500.0,0.00016438,2]
[351317069,1738512632881,-500.0,0.00016438,2]
[351317070,1738512632891,-500.0,0.00016438,2]
[351317071,1738512632900,-503.24787456,0.00016438,2]
[351317072,1738512632911,-1134.7,0.00016438,2]
[351317073,1738512632921,-500.0,0.00016438,2]
[351317074,1738512632931,-500.0,0.00016438,2]
[351317075,1738512632940,-628.37,0.00016438,2]
[351317076,1738512632951,-500.0,0.00016438,2]
[351317077,1738512632960,-6541.85,0.00016438,2]
[351317078,1738512632970,-500.0,0.00016438,2]
[351317079,1738512632979,-1851.41,0.00016438,2]
[351317080,1738512632988,-500.0,0.00016438,2]
[351317081,1738512632998,-500.0,0.00016438,2]
[351317082,1738512633008,-500.0,0.00016438,2]
[351317083,1738512633018,-500.0,0.00016438,2]
[351317084,1738512633028,-520.0,0.00016438,2]
[351317085,1738512633037,-500.0,0.00016438,2]
[351317086,1738512633047,-500.0,0.00016438,2]
[351317087,1738512633057,-500.0,0.00016438,2]
[351317088,1738512633067,-358.53,0.00016438,2]
[351317089,1738512633077,-500.0,0.00016438,2]
[351317090,1738512633087,-500.0,0.00016438,2]
[351317091,1738512633097,-500.0,0.00016438,2]
[351317092,1738512633107,-500.0,0.00016438,2]
[351317093,1738512633116,-500.0,0.00016438,2]
[351317094,1738512633126,-500.0,0.00016438,2]
[351317095,1738512633136,-386.06858417,0.00016438,2]
[351317096,1738512633146,-606.33,0.00016438,2]
[351317097,1738512633155,-500.0,0.00016438,2]
[351317098,1738512633165,-58.29172544,0.00016438,2]
[351317099,1738512635386,-300.0,0.00016438,2]
[351317100,1738512635398,-141.70827456,0.00016438,2]
[351317101,1738512635408,-500.0,0.00016438,2]
[351317102,1738512635418,-500.0,0.00016438,2]
[351317103,1738512635429,-209.93013239,0.00016438,2]
[351317104,1738512635441,-290.06986761,0.00016438,2]
[351317105,1738512635451,-7.78511239,0.00016438,2]
[351317121,1738512638545,-301.79,0.00016438,2]
[351317122,1738512638558,-190.42488761,0.00016438,2]
[351317123,1738512638568,-500.0,0.00016438,2]
[351317124,1738512638578,-947.74,0.00016438,2]
[351317125,1738512638589,-500.0,0.00016438,2]
[351317126,1738512638599,-500.0,0.00016438,2]
[351317127,1738512638608,-500.0,0.00016438,2]
[351317128,1738512638618,-500.0,0.00016438,2]
[351317129,1738512638628,-500.0,0.00016438,2]
[351317130,1738512638638,-2852.13,0.00016438,2]
[351317131,1738512638649,-565.44,0.00016438,2]
[351317132,1738512638659,-500.0,0.00016438,2]
[351317133,1738512638670,-500.0,0.00016438,2]
[351317134,1738512638680,-500.0,0.00016438,2]
[351317135,1738512638690,-500.0,0.00016438,2]
[351317136,1738512638700,-500.0,0.00016438,2]
[351317137,1738512638710,-500.0,0.00016438,2]
[351317138,1738512638719,-500.0,0.00016438,2]
[351317139,1738512638728,-568.31187269,0.00016438,2]
[351317140,1738512638738,-500.0,0.00016438,2]
[351317141,1738512638752,-162.62,0.00016438,2]
[351317142,1738512638761,-500.0,0.00016438,2]
[351317143,1738512638771,-500.0,0.00016438,2]
[351317144,1738512638781,-500.0,0.00016438,2]
[351317145,1738512638791,-500.0,0.00016438,2]
[351317146,1738512638801,-500.0,0.00016438,2]
[351317147,1738512638810,-500.0,0.00016438,2]
[351317148,1738512638820,-500.0,0.00016438,2]
[351317149,1738512638829,-500.0,0.00016438,2]
[351317150,1738512638839,-500.0,0.00016438,2]
[351317151,1738512638848,-500.0,0.00016438,2]
[351317152,1738512638858,-500.0,0.00016438,2]
[351317153,1738512638871,-500.0,0.00016438,2]
[351317154,1738512638880,-500.0,0.00016438,2]
[351317155,1738512638890,-500.0,0.00016438,2]
[351317156,1738512638900,-500.0,0.00016438,2]
[351317157,1738512638910,-500.0,0.00016438,2]
[351317158,1738512638920,-500.0,0.00016438,2]
[351317159,1738512638929,-1236.77,0.00016438,2]
[351317160,1738512638939,-500.0,0.00016438,2]
[351317161,1738512638950,-500.0,0.00016438,2]
[351317162,1738512638960,-531.29103151,0.00016438,2]
[351317163,1738512638969,-500.0,0.00016438,2]
[351317164,1738512638979,-500.0,0.00016438,2]
[351317165,1738512638989,-500.0,0.00016438,2]
[351317166,1738512638998,-500.0,0.00016438,2]
[351317167,1738512639008,-3000.0,0.0001644,2]
[351317168,1738512639018,-3000.0,0.0001645,2]
[351317169,1738512639027,-335.45164401,0.00016459,2]
[351317170,1738512639037,-2220.30046788,0.0001646,2]
[351317171,1738512639049,-596.59801914,0.0001646,2]
[351317172,1738512639070,-183.10151298,0.0001646,2]
[351317173,1738512639080,-152.0,0.0001646,2]
[351317174,1738512639090,-3000.0,0.0001647,2]
[351317175,1738512639099,-3000.0,0.0001648,2]
[351317176,1738512639109,-3000.0,0.0001649,2]
[351317177,1738512639118,-3000.0,0.000165,2]
[351317178,1738512639128,-3000.0,0.0001651,2]
[351317179,1738512639137,-3000.0,0.0001652,2]
[351317180,1738512639147,-3000.0,0.0001653,2]
[351317181,1738512639157,-3000.0,0.0001654,2]
[351317182,1738512639166,-3000.0,0.0001655,2]
[351317183,1738512639177,-349.84602988,0.00016559,2]
[351317184,1738512639187,-3000.0,0.0001656,2]
[351317185,1738512639197,-3000.0,0.0001657,2]
[351317186,1738512639207,-500.0,0.00016575,2]
[351317187,1738512639216,-317.52,0.00016575,2]
[351317188,1738512639225,-500.0,0.00016575,2]
[351317189,1738512639235,-500.0,0.00016575,2]
[351317190,1738512639245,-500.0,0.00016575,2]
[351317191,1738512639255,-500.0,0.00016575,2]
[351317192,1738512639264,-1134.7,0.00016575,2]
[351317193,1738512639274,-500.0,0.00016575,2]
[351317194,1738512639284,-500.0,0.00016575,2]
[351317195,1738512639293,-6541.85,0.00016575,2]
[351317196,1738512639304,-500.0,0.00016575,2]
[351317197,1738512639313,-1851.41,0.00016575,2]
[351317198,1738512639323,-500.0,0.00016575,2]
[351317199,1738512639333,-500.0,0.00016575,2]
[351317200,1738512639342,-500.0,0.00016575,2]
[351317201,1738512639352,-500.0,0.00016575,2]
[351317202,1738512639362,-500.0,0.00016575,2]
[351317203,1738512639372,-500.0,0.00016575,2]
[351317204,1738512639381,-500.0,0.00016575,2]
[351317205,1738512639390,-500.0,0.00016575,2]
[351317206,1738512639400,-500.0,0.00016575,2]
[351317207,1738512639409,-500.0,0.00016575,2]
[351317210,1738512639420,-169.43,0.00016575,2]
[351317211,1738512639429,-500.0,0.00016575,2]
[351317212,1738512639439,-500.0,0.00016575,2]
[351317213,1738512639449,-947.74,0.00016575,2]
[351317214,1738512639459,-500.0,0.00016575,2]
[351317215,1738512639468,-500.0,0.00016575,2]
[351317216,1738512639477,-2852.13,0.00016575,2]
[351317217,1738512639487,-565.44,0.00016575,2]
[351317218,1738512639496,-151.47,0.00016575,2]
[351317219,1738512639506,-500.0,0.00016575,2]
[351317220,1738512639515,-500.0,0.00016575,2]
[351317221,1738512639524,-500.0,0.00016575,2]
[351317222,1738512639534,-500.0,0.00016575,2]
[351317223,1738512639545,-500.0,0.00016575,2]
[351317224,1738512639554,-500.0,0.00016575,2]
[351317225,1738512639564,-500.0,0.00016575,2]
[351317226,1738512639574,-500.0,0.00016575,2]
[351317227,1738512639584,-500.0,0.00016575,2]
[351317228,1738512639593,-500.0,0.00016575,2]
[351317229,1738512639603,-500.0,0.00016575,2]
[351317230,1738512639612,-500.0,0.00016575,2]
[351317231,1738512639622,-500.0,0.00016575,2]
[351317232,1738512639632,-500.0,0.00016575,2]
[351317233,1738512639651,-500.0,0.00016575,2]
[351317234,1738512639664,-500.0,0.00016575,2]
[351317235,1738512639674,-500.0,0.00016575,2]
[351317236,1738512639684,-1236.77,0.00016575,2]
[351317237,1738512639694,-500.0,0.00016575,2]
[351317238,1738512639703,-500.0,0.00016575,2]
[351317239,1738512639713,-500.0,0.00016575,2]
[351317240,1738512639844,-500.0,0.00016575,2]
[351317241,1738512639854,-500.0,0.00016575,2]
[351317242,1738512639868,-3000.0,0.0001658,2]
[351317243,1738512639877,-3000.0,0.0001659,2]
[351317245,1738512639887,-3000.0,0.000166,2]
[351317247,1738512639897,-3000.0,0.0001661,2]
[351317248,1738512639907,-3000.0,0.0001662,2]
[351317250,1738512639917,-3000.0,0.0001663,2]
[351317253,1738512639927,-3000.0,0.0001664,2]
[351317255,1738512639938,-3000.0,0.0001665,2]
[351317256,1738512639948,-3000.0,0.0001666,2]
[351317258,1738512639958,-3000.0,0.0001667,2]
[351317260,1738512639968,-3000.0,0.0001668,2]
[351317262,1738512639979,-3000.0,0.0001669,2]
[351317264,1738512639989,-5988.692956,0.000167,2]
[351317266,1738512639999,-500.0,0.00016712,2]
[351317268,1738512640009,-500.0,0.00016712,2]
[351317270,1738512640020,-500.0,0.00016712,2]
[351317272,1738512640030,-500.0,0.00016712,2]
[351317274,1738512640040,-500.0,0.00016712,2]
[351317275,1738512640049,-1134.7,0.00016712,2]
[351317277,1738512640059,-500.0,0.00016712,2]
[351317279,1738512640069,-317.18682346,0.00016712,2]
[351317281,1738512640079,-6541.85,0.00016712,2]
[351317283,1738512640089,-500.0,0.00016712,2]
[351317285,1738512640098,-1851.41,0.00016712,2]
[351317287,1738512640109,-299.07,0.00016712,2]
[351317289,1738512640119,-500.0,0.00016712,2]
[351317291,1738512640129,-500.0,0.00016712,2]
[351317293,1738512640139,-500.0,0.00016712,2]
[351317295,1738512640149,-500.0,0.00016712,2]
[351317297,1738512640160,-595.48536012,0.00016712,2]
[351317299,1738512640170,-500.0,0.00016712,2]
[351317301,1738512640180,-500.0,0.00016712,2]
[351317303,1738512640190,-295.41,0.00016712,2]
[351317305,1738512640200,-500.0,0.00016712,2]
[351317307,1738512640209,-947.74,0.00016712,2]
[351317309,1738512640220,-500.0,0.00016712,2]
[351317311,1738512640230,-2852.13,0.00016712,2]
[351317312,1738512640240,-565.44,0.00016712,2]
[351317313,1738512640250,-500.0,0.00016712,2]
[351317314,1738512640260,-500.0,0.00016712,2]
[351317315,1738512640271,-500.0,0.00016712,2]
[351317317,1738512640281,-500.0,0.00016712,2]
[351317318,1738512640290,-500.0,0.00016712,2]
[351317320,1738512640300,-500.0,0.00016712,2]
[351317322,1738512640309,-500.0,0.00016712,2]
[351317324,1738512640318,-500.0,0.00016712,2]
[351317326,1738512640328,-500.0,0.00016712,2]
[351317328,1738512640337,-500.0,0.00016712,2]
[351317330,1738512640348,-500.0,0.00016712,2]
[351317332,1738512640358,-500.0,0.00016712,2]
[351317334,1738512640368,-500.0,0.00016712,2]
[351317336,1738512640378,-500.0,0.00016712,2]
[351317338,1738512640390,-1236.77,0.00016712,2]
[351317340,1738512640399,-500.0,0.00016712,2]
[351317341,1738512640409,-500.0,0.00016712,2]
[351317342,1738512640418,-500.0,0.00016712,2]
[351317343,1738512640428,-500.0,0.00016712,2]
[351317344,1738512640438,-272.9,0.00016712,2]
[351317345,1738512640448,-396.0,0.00016775,2]
[351317346,1738512640458,-1547.664,0.00016819,2]
[351317347,1738512640471,-2302.0,0.00016819,2]
[351317348,1738512640482,-500.93803007,0.00016842,2]
[351317350,1738512640492,-500.0,0.00016842,2]
[351317351,1738512640501,-507.37392155,0.00016848,2]
[351317352,1738512640511,-500.0,0.00016849,2]
[351317353,1738512640521,-500.0,0.00016849,2]
[351317354,1738512640530,-500.0,0.00016849,2]
[351317355,1738512640539,-500.0,0.00016849,2]
[351317356,1738512640549,-500.0,0.00016849,2]
[351317357,1738512640559,-1134.7,0.00016849,2]
[351317358,1738512640569,-500.0,0.00016849,2]
[351317359,1738512640579,-6541.85,0.00016849,2]
[351317360,1738512640589,-500.0,0.00016849,2]
[351317361,1738512640599,-1851.41,0.00016849,2]
[351317362,1738512640609,-500.0,0.00016849,2]
[351317363,1738512640618,-500.0,0.00016849,2]
[351317364,1738512640627,-500.0,0.00016849,2]
[351317365,1738512640636,-500.0,0.00016849,2]
[351317366,1738512640646,-500.0,0.00016849,2]
[351317367,1738512640655,-500.0,0.00016849,2]
[351317368,1738512640665,-500.0,0.00016849,2]
[351317369,1738512640675,-947.74,0.00016849,2]
[351317370,1738512640686,-500.0,0.00016849,2]
[351317371,1738512640695,-2852.13,0.00016849,2]
[351317372,1738512640705,-565.44,0.00016849,2]
[351317373,1738512640714,-500.0,0.00016849,2]
[351317374,1738512640728,-550.14,0.00016849,2]
[351317375,1738512640737,-500.0,0.00016849,2]
[351317376,1738512640746,-561.03,0.00016849,2]
[351317377,1738512640756,-500.0,0.00016849,2]
[351317378,1738512640765,-500.0,0.00016849,2]
[351317379,1738512640774,-649.19,0.00016849,2]
[351317380,1738512640784,-500.0,0.00016849,2]
[351317381,1738512640794,-500.0,0.00016849,2]
[351317382,1738512640803,-500.0,0.00016849,2]
[351317383,1738512640812,-500.0,0.00016849,2]
[351317384,1738512640822,-1236.77,0.00016849,2]
[351317385,1738512640834,-420.9,0.00016849,2]
[351317386,1738512640843,-500.0,0.00016986,2]
[351317387,1738512640853,-500.0,0.00016986,2]
[351317388,1738512640865,-500.0,0.00016986,2]
[351317389,1738512640876,-500.0,0.00016986,2]
[351317390,1738512640885,-1134.7,0.00016986,2]
[351317391,1738512640894,-500.0,0.00016986,2]
[351317392,1738512640904,-6541.85,0.00016986,2]
[351317393,1738512640915,-500.0,0.00016986,2]
[351317394,1738512640924,-1851.41,0.00016986,2]
[351317395,1738512640934,-500.0,0.00016986,2]
[351317396,1738512640945,-500.0,0.00016986,2]
[351317397,1738512640956,-500.0,0.00016986,2]
[351317398,1738512640965,-500.0,0.00016986,2]
[351317399,1738512640975,-500.0,0.00016986,2]
[351317400,1738512640985,-500.0,0.00016986,2]
[351317401,1738512640995,-500.0,0.00016986,2]
[351317402,1738512641004,-947.74,0.00016986,2]
[351317403,1738512641014,-500.0,0.00016986,2]
[351317404,1738512641023,-2852.13,0.00016986,2]
[351317405,1738512641032,-565.44,0.00016986,2]
[351317406,1738512641042,-500.0,0.00016986,2]
[351317407,1738512641052,-500.0,0.00016986,2]
[351317408,1738512641061,-500.0,0.00016986,2]
[351317409,1738512641071,-500.0,0.00016986,2]
[351317410,1738512641081,-500.0,0.00016986,2]
[351317411,1738512641091,-500.0,0.00016986,2]
[351317412,1738512641101,-500.0,0.00016986,2]
[351317413,1738512641111,-1236.77,0.00016986,2]
[351317414,1738512641120,-500.0,0.00017123,2]
[351317415,1738512641130,-500.0,0.00017123,2]
[351317416,1738512641140,-500.0,0.00017123,2]
[351317417,1738512641150,-500.0,0.00017123,2]
[351317418,1738512641160,-1134.7,0.00017123,2]
[351317419,1738512641169,-500.0,0.00017123,2]
[351317420,1738512641180,-6541.85,0.00017123,2]
[351317421,1738512641189,-500.0,0.00017123,2]
[351317422,1738512641198,-1851.41,0.00017123,2]
[351317423,1738512641207,-298.19,0.00017123,2]
[351317424,1738512641217,-500.0,0.00017123,2]
[351317425,1738512641227,-500.0,0.00017123,2]
[351317426,1738512641236,-500.0,0.00017123,2]
[351317427,1738512641245,-500.0,0.00017123,2]
[351317428,1738512641255,-500.0,0.00017123,2]
[351317429,1738512641265,-500.0,0.00017123,2]
[351317430,1738512641275,-947.74,0.00017123,2]
[351317431,1738512641285,-500.0,0.00017123,2]
[351317432,1738512641295,-2852.13,0.00017123,2]
[351317433,1738512641304,-565.44,0.00017123,2]
[351317434,1738512641313,-500.0,0.00017123,2]
[351317435,1738512641323,-500.0,0.00017123,2]
[351317436,1738512641333,-500.0,0.00017123,2]
[351317437,1738512641342,-500.0,0.00017123,2]
[351317438,1738512641351,-554.15,0.00017123,2]
[351317439,1738512641361,-500.0,0.00017123,2]
[351317440,1738512641371,-500.0,0.00017123,2]
[351317441,1738512641380,-1236.77,0.00017123,2]
[351317442,1738512641389,-153.0,0.00017205,2]
[351317443,1738512641399,-218.246188,0.00017205,2]
[351317444,1738512641409,-154.1761492,0.00017205,2]
[351317445,1738512641419,-153.0,0.00017205,2]
[351317446,1738512641428,-153.0,0.00017205,2]
[351317447,1738512641438,-153.0,0.00017205,2]
[351317448,1738512641447,-153.0,0.00017205,2]
[351317449,1738512641457,-153.0,0.00017205,2]
[351317450,1738512641466,-500.0,0.00017259,2]
[351317451,1738512641475,-500.0,0.0001726,2]
[351317452,1738512641485,-1134.7,0.0001726,2]
[351317453,1738512641494,-500.0,0.0001726,2]
[351317454,1738512641504,-6541.85,0.0001726,2]
[351317455,1738512641513,-500.0,0.0001726,2]
[351317456,1738512641523,-1851.41,0.0001726,2]
[351317457,1738512641533,-500.0,0.0001726,2]
[351317458,1738512641542,-500.0,0.0001726,2]
[351317459,1738512641551,-500.0,0.0001726,2]
[351317460,1738512641560,-500.0,0.0001726,2]
[351317461,1738512641569,-500.0,0.0001726,2]
[351317462,1738512641578,-500.0,0.0001726,2]
[351317463,1738512641588,-947.74,0.0001726,2]
[351317464,1738512641598,-500.0,0.0001726,2]
[351317465,1738512641608,-2852.13,0.0001726,2]
[351317466,1738512641617,-565.44,0.0001726,2]
[351317467,1738512641627,-500.0,0.0001726,2]
[351317468,1738512641636,-500.0,0.0001726,2]
[351317469,1738512641645,-500.0,0.0001726,2]
[351317470,1738512641655,-500.0,0.0001726,2]
[351317471,1738512641664,-500.0,0.0001726,2]
[351317472,1738512641674,-500.0,0.0001726,2]
[351317473,1738512641684,-1236.77,0.0001726,2]
[351317474,1738512641694,-600.0,0.0001728,2]
[351317475,1738512641704,-1000.0,0.0001739,2]
[351317476,1738512641714,-500.0,0.00017397,2]
[351317477,1738512641724,-1134.7,0.00017397,2]
[351317478,1738512641733,-500.0,0.00017397,2]
[351317479,1738512641743,-6541.85,0.00017397,2]
[351317480,1738512641752,-500.0,0.00017397,2]
[351317481,1738512641762,-1851.41,0.00017397,2]
[351317482,1738512641772,-500.0,0.00017397,2]
[351317483,1738512641781,-500.0,0.00017397,2]
[351317484,1738512641790,-500.0,0.00017397,2]
[351317485,1738512641799,-500.0,0.00017397,2]
[351317486,1738512641808,-500.0,0.00017397,2]
[351317487,1738512641818,-500.0,0.00017397,2]
[351317488,1738512641828,-947.74,0.00017397,2]
[351317489,1738512641838,-500.0,0.00017397,2]
[351317490,1738512641848,-2852.13,0.00017397,2]
[351317491,1738512641858,-565.44,0.00017397,2]
[351317492,1738512641873,-500.0,0.00017397,2]
[351317493,1738512641882,-500.0,0.00017397,2]
[351317494,1738512641892,-500.0,0.00017397,2]
[351317495,1738512641901,-500.0,0.00017397,2]
[351317496,1738512641911,-500.0,0.00017397,2]
[351317497,1738512641920,-500.0,0.00017397,2]
[351317498,1738512641931,-1236.77,0.00017397,2]
[351317499,1738512641941,-214.466,0.00017417,2]
[351317500,1738512641951,-500.0,0.00017534,2]
[351317501,1738512641960,-1134.7,0.00017534,2]
[351317502,1738512641970,-500.0,0.00017534,2]
[351317503,1738512641981,-6541.85,0.00017534,2]
[351317504,1738512641991,-500.0,0.00017534,2]
[351317505,1738512642001,-1851.41,0.00017534,2]
[351317506,1738512642011,-544.12456631,0.00017534,2]
[351317507,1738512642021,-500.0,0.00017534,2]
[351317508,1738512642031,-500.0,0.00017534,2]
[351317509,1738512642041,-500.0,0.00017534,2]
[351317510,1738512642051,-500.0,0.00017534,2]
[351317511,1738512642060,-500.0,0.00017534,2]
[351317512,1738512642070,-947.74,0.00017534,2]
[351317513,1738512642079,-500.0,0.00017534,2]
[351317514,1738512642089,-2852.13,0.00017534,2]
[351317515,1738512642098,-565.44,0.00017534,2]
[351317516,1738512642108,-144.09482369,0.00017534,2]
[351317517,1738512642128,-355.90517631,0.00017534,2]
[351317518,1738512642137,-500.0,0.00017534,2]
[351317519,1738512642146,-500.0,0.00017534,2]
[351317520,1738512642156,-500.0,0.00017534,2]
[351317521,1738512642166,-500.0,0.00017534,2]
[351317522,1738512642175,-500.0,0.00017534,2]
[351317523,1738512642185,-1131.67415063,0.00017534,2]
[351317524,1738512642197,-105.09584937,0.00017534,2]
[351317525,1738512642207,-10934.81790991,0.00017623,2]
[351317526,1738512642217,-500.0,0.00017671,2]
[351317527,1738512642226,-1134.7,0.00017671,2]
[351317528,1738512642235,-500.0,0.00017671,2]
[351317529,1738512642245,-2486.48188581,0.00017671,2]
[351318372,1738512709264,500.0,0.00015342,2]
[351318374,1738512757945,233.598399,0.00013973,2]
[351318375,1738512871080,160.0,0.00020463,120]
[351318376,1738512914830,1000.0,0.00016,16]
[351318377,1738512931375,160.0,0.00018924,120]
[351318379,1738513012114,9997.54791613,0.000152,2]
[351318380,1738513012153,95.82280657,0.000152,2]
[351318381,1738513074366,176.948612,0.00013699,2]
[351318387,1738513417387,5000.0,0.0001511,2]
[351318388,1738513426119,2541.72059686,0.0001511,2]
[351318392,1738513468436,500.0,0.00015342,2]
[351318394,1738513556936,1000.0,0.00016,16]
[351318400,1738513621706,2489.2048334,0.0001511,2]
[351318403,1738513689263,5964.72,0.0001511,2]
[351318404,1738513753134,-1288.21539,0.00015369,5]
[351318405,1738513763147,-1482.24461,0.00015369,5]
[351318406,1738513763169,-300.0,0.00015999,2]
[351318407,1738513763191,-1022.00579,0.00016,3]
[351318408,1738513768215,-7984.32898256,0.00016,3]
[351318446,1738513835198,-3633.3312761,0.00015391,2]
[351318447,1738513835209,-300.0,0.00015999,2]
[351318448,1738513835220,-5823.03606994,0.00016,3]
[351318449,1738513835230,-158.84103454,0.00016,2]
[351318450,1738513835241,-995.13181306,0.00016,2]
[351318451,1738513835252,-550.3589858,0.00016338,2]
[351318452,1738513835262,-550.35898577,0.00016372,2]
[351318453,1738513835273,-5033.30121923,0.000164,2]
[351318454,1738513835286,-550.35898577,0.00016407,2]
[351318455,1738513835296,-500.0,0.00016437,2]
[351318456,1738513835306,-500.0,0.00016437,2]
[351318457,1738513835317,-500.0,0.00016437,2]
[351318458,1738513835327,-500.0,0.00016437,2]
[351318459,1738513835337,-500.0,0.00016437,2]
[351318460,1738513835347,-500.0,0.00016437,2]
[351318461,1738513835357,-500.0,0.00016437,2]
[351318462,1738513835366,-307.74821219,0.00016437,2]
[351318463,1738513835376,-500.0,0.00016437,2]
[351318464,1738513835385,-393.06725973,0.00016437,2]
[351318465,1738513835395,-500.0,0.00016437,2]
[351318466,1738513835407,-500.0,0.00016437,2]
[351318467,1738513835418,-500.0,0.00016437,2]
[351318468,1738513835428,-500.0,0.00016437,2]
[351318469,1738513835437,-500.0,0.00016437,2]
[351318470,1738513835447,-500.0,0.00016437,2]
[351318471,1738513835457,-500.0,0.00016437,2]
[351318472,1738513835467,-500.0,0.00016437,2]
[351318473,1738513835477,-500.0,0.00016437,2]
[351318474,1738513835487,-500.0,0.00016437,2]
[351318475,1738513835497,-500.0,0.00016437,2]
[351318476,1738513835507,-500.0,0.00016437,2]
[351318477,1738513835518,-500.0,0.00016437,2]
[351318478,1738513835528,-500.0,0.00016437,2]
[351318479,1738513835538,-500.0,0.00016437,2]
[351318480,1738513835548,-500.0,0.00016437,2]
[351318481,1738513835559,-500.0,0.00016437,2]
[351318482,1738513835570,-500.0,0.00016437,2]
[351318483,1738513835581,-500.0,0.00016437,2]
[351318484,1738513835592,-500.0,0.00016437,2]
[351318485,1738513835602,-500.0,0.00016437,2]
[351318486,1738513835612,-500.0,0.00016437,2]
[351318487,1738513835623,-500.0,0.00016437,2]
[351318488,1738513835633,-500.0,0.00016437,2]
[351318489,1738513835643,-500.0,0.00016437,2]
[351318490,1738513835658,-500.0,0.00016437,2]
[351318491,1738513835668,-500.0,0.00016437,2]
[351318492,1738513835678,-500.0,0.00016437,2]
[351318493,1738513835689,-500.0,0.00016437,2]
[351318494,1738513835699,-500.0,0.00016437,2]
[351318495,1738513835709,-500.0,0.00016437,2]
[351318496,1738513835720,-500.0,0.00016437,2]
[351318497,1738513835730,-181.61663851,0.00016437,2]
[351318498,1738513835740,-500.0,0.00016437,2]
[351318499,1738513835750,-500.0,0.00016437,2]
[351318500,1738513835760,-500.0,0.00016437,2]